[Event "*** Titled Tuesday Blitz"]
[Site "Chess.com"]
[Date "2018.05.01"]
[Round "9"]
[White "igorkovalenko"]
[Black "Indianlad"]
[Result "1-0"]
[WhiteElo "2738"]
[BlackElo "2656"]
[TimeControl "180+2"]
[EndTime "15:01:53 PDT"]
[Termination "igorkovalenko won by resignation"]

1. d4 {[%clk 0:03:01.9]} 1... Nf6 {[%clk 0:03:01]} 2. Nf3 {[%clk 0:03:03.4]}
2... e6 {[%clk 0:03:01.9]} 3. e3 {[%clk 0:03:04.9]} 3... d5 {[%clk 0:03:01.7]}
4. Bd3 {[%clk 0:03:06.8]} 4... Bd6 {[%clk 0:03:01.9]} 5. O-O {[%clk 0:03:08.2]}
5... O-O {[%clk 0:03:02.9]} 6. b3 {[%clk 0:03:08.7]} 6... b6 {[%clk 0:03:01.8]}
7. Bb2 {[%clk 0:03:10.1]} 7... Bb7 {[%clk 0:03:03.7]} 8. Ne5 {[%clk 0:03:05.8]}
8... c5 {[%clk 0:03:04]} 9. Nd2 {[%clk 0:03:06.3]} 9... Nc6 {[%clk 0:03:04.7]}
10. f4 {[%clk 0:03:06.3]} 10... Rc8 {[%clk 0:03:04]} 11. a3 {[%clk 0:03:07]}
11... cxd4 {[%clk 0:02:57.6]} 12. exd4 {[%clk 0:03:08]} 12... Ne7 {[%clk
0:02:44.6]} 13. Qe1 {[%clk 0:03:08.9]} 13... Qc7 {[%clk 0:02:43.1]} 14. Rc1
{[%clk 0:03:08]} 14... Qb8 {[%clk 0:02:41.7]} 15. Qe2 {[%clk 0:03:06.4]} 15...
Rfe8 {[%clk 0:02:31.4]} 16. g4 {[%clk 0:03:07.4]} 16... Ng6 {[%clk 0:02:31.3]}
17. g5 {[%clk 0:02:44.5]} 17... Ne4 {[%clk 0:02:21.2]} 18. Rf3 {[%clk
0:02:45.7]} 18... Bxe5 {[%clk 0:01:53.6]} 19. fxe5 {[%clk 0:02:45.3]} 19... Nxg5
{[%clk 0:01:54.1]} 20. Rg3 {[%clk 0:02:37.4]} 20... h6 {[%clk 0:01:47.4]} 21.
Rf1 {[%clk 0:02:36.2]} 21... Qc7 {[%clk 0:01:46]} 22. Qh5 {[%clk 0:02:33.3]}
22... Ne4 {[%clk 0:01:46.2]} 23. Rg2 {[%clk 0:02:30.3]} 23... Qe7 {[%clk
0:01:41.6]} 24. Bc1 {[%clk 0:02:16.2]} 24... Qh4 {[%clk 0:01:36.7]} 25. Qf3
{[%clk 0:02:16.9]} 25... Ng5 {[%clk 0:01:34.9]} 26. Qe3 {[%clk 0:02:12.5]} 26...
Nh3+ {[%clk 0:01:35.9]} 27. Kh1 {[%clk 0:02:13.4]} 27... Nhf4 {[%clk 0:01:36.6]}
28. Rgf2 {[%clk 0:01:46.7]} 28... Nxd3 {[%clk 0:01:34.3]} 29. Qxd3 {[%clk
0:01:48]} 29... Nxe5 {[%clk 0:01:12.3]} 30. dxe5 {[%clk 0:01:46.8]} 30... Rc3
{[%clk 0:01:13.2]} 31. Qxc3 {[%clk 0:01:43.2]} 31... d4+ {[%clk 0:01:13.7]} 32.
Qf3 {[%clk 0:01:44.8]} 32... Bxf3+ {[%clk 0:01:12.6]} 33. Nxf3 {[%clk
0:01:41.6]} 33... Qe4 {[%clk 0:01:11.8]} 34. Re1 {[%clk 0:01:42.7]} 34... Qd5
{[%clk 0:01:06.5]} 35. Rd1 {[%clk 0:01:43.4]} 35... g5 {[%clk 0:00:52.6]} 36.
Rxd4 {[%clk 0:01:44]} 36... Qc5 {[%clk 0:00:54.2]} 37. Kg2 {[%clk 0:01:41.2]}
37... Kg7 {[%clk 0:00:52.9]} 38. h4 {[%clk 0:01:40.1]} 38... Rg8 {[%clk
0:00:44.2]} 39. hxg5 {[%clk 0:01:40.4]} 39... hxg5 {[%clk 0:00:45.6]} 40. Bxg5
{[%clk 0:01:38.8]} 40... Kg6 {[%clk 0:00:46.8]} 41. Rfd2 {[%clk 0:01:33.8]}
41... Qc6 {[%clk 0:00:43.7]} 42. Kg3 {[%clk 0:01:34.4]} 42... Qc3 {[%clk
0:00:43.3]} 43. Rf4 {[%clk 0:01:32.3]} 43... Qa1 {[%clk 0:00:38.6]} 44. Rf6+
{[%clk 0:01:31.4]} 44... Kg7 {[%clk 0:00:37.9]} 45. Rd7 {[%clk 0:01:30]} 45...
Kh8 {[%clk 0:00:31.5]} 46. Rfxf7 {[%clk 0:01:08.2]} 46... Rxg5+ {[%clk
0:00:32.4]} 47. Nxg5 {[%clk 0:01:09.6]} 47... Qg1+ {[%clk 0:00:33.8]} 48. Kh4
{[%clk 0:01:11]} 48... Qh1+ {[%clk 0:00:28.8]} 49. Kg4 {[%clk 0:01:10.6]} 49...
Qg2+ {[%clk 0:00:26.7]} 50. Kh5 {[%clk 0:01:11.9]} 50... Qh2+ {[%clk 0:00:27.5]}
51. Kg6 {[%clk 0:01:13.3]} 51... Qxc2+ {[%clk 0:00:28]} 52. Kf6 {[%clk
0:01:14.5]} 52... Qf5+ {[%clk 0:00:28.9]} 53. Ke7 {[%clk 0:01:15.8]} 53... Qxg5+
{[%clk 0:00:30.2]} 54. Kxe6 {[%clk 0:01:15.3]} 54... Qg6+ {[%clk 0:00:29.1]} 55.
Ke7 {[%clk 0:01:14.1]} 55... Qg5+ {[%clk 0:00:29.8]} 56. Kd6 {[%clk 0:01:14.9]}
56... Qd2+ {[%clk 0:00:30.1]} 57. Kc7 {[%clk 0:01:16.2]} 57... Qc2+ {[%clk
0:00:16.3]} 58. Kb8 {[%clk 0:01:16]} 58... Kg8 {[%clk 0:00:18.2]} 59. Rg7+
{[%clk 0:01:15.6]} 59... Kf8 {[%clk 0:00:17.6]} 60. Rdf7+ {[%clk 0:01:16.6]}
60... Ke8 {[%clk 0:00:18.5]} 61. Rc7 {[%clk 0:01:18.3]} 1-0

[Event "*** Titled Tuesday Blitz"]
[Site "Chess.com"]
[Date "2018.05.01"]
[Round "9"]
[White "Sven_Tica"]
[Black "FastChance"]
[Result "0-1"]
[WhiteElo "2639"]
[BlackElo "2671"]
[TimeControl "180+2"]
[EndTime "15:01:53 PDT"]
[Termination "FastChance won by resignation"]

1. d4 {[%clk 0:03:01.9]} 1... e6 {[%clk 0:03:00.9]} 2. c4 {[%clk 0:03:03.2]}
2... Bb4+ {[%clk 0:03:01.6]} 3. Bd2 {[%clk 0:03:04.6]} 3... Bxd2+ {[%clk
0:03:01.3]} 4. Nxd2 {[%clk 0:03:05.8]} 4... Nf6 {[%clk 0:03:01.7]} 5. g3 {[%clk
0:03:06.2]} 5... O-O {[%clk 0:02:57.4]} 6. Bg2 {[%clk 0:03:07.5]} 6... d6 {[%clk
0:02:59]} 7. e3 {[%clk 0:03:08.4]} 7... Qe7 {[%clk 0:02:59.7]} 8. Ne2 {[%clk
0:03:09.6]} 8... e5 {[%clk 0:03:00.5]} 9. O-O {[%clk 0:03:11.1]} 9... a5 {[%clk
0:03:00.9]} 10. Rb1 {[%clk 0:03:04.9]} 10... Nc6 {[%clk 0:03:01]} 11. d5 {[%clk
0:03:03]} 11... Nb8 {[%clk 0:02:59.3]} 12. Nc3 {[%clk 0:03:02.2]} 12... Na6
{[%clk 0:02:56.4]} 13. a3 {[%clk 0:03:03.5]} 13... Bf5 {[%clk 0:02:54.4]} 14. e4
{[%clk 0:03:03.3]} 14... Bg4 {[%clk 0:02:55.5]} 15. f3 {[%clk 0:03:04.1]} 15...
Bd7 {[%clk 0:02:56.4]} 16. b4 {[%clk 0:03:05.6]} 16... axb4 {[%clk 0:02:57.3]}
17. axb4 {[%clk 0:03:07.5]} 17... c6 {[%clk 0:02:58.5]} 18. Qe2 {[%clk 0:02:59]}
18... Rfc8 {[%clk 0:02:59.3]} 19. h3 {[%clk 0:02:38.6]} 19... c5 {[%clk
0:02:53]} 20. b5 {[%clk 0:02:38.6]} 20... Nb4 {[%clk 0:02:53.6]} 21. f4 {[%clk
0:02:39.7]} 21... Nc2 {[%clk 0:02:50.1]} 22. f5 {[%clk 0:02:36.8]} 22... Nd4
{[%clk 0:02:50.4]} 23. Qe3 {[%clk 0:02:35.9]} 23... Ra3 {[%clk 0:02:49.8]} 24.
Kh1 {[%clk 0:02:34.7]} 24... Rca8 {[%clk 0:02:47.6]} 25. Rb2 {[%clk 0:02:25.3]}
25... h6 {[%clk 0:02:44.7]} 26. Ndb1 {[%clk 0:02:24.2]} 26... Ra1 {[%clk
0:02:42.4]} 27. Kh2 {[%clk 0:02:20.6]} 27... Qd8 {[%clk 0:02:40.7]} 28. g4
{[%clk 0:02:17.2]} 28... Nh7 {[%clk 0:02:41.3]} 29. Kg3 {[%clk 0:02:13.9]} 29...
Qg5 {[%clk 0:02:30.7]} 30. Qd2 {[%clk 0:02:04.8]} 30... Nf6 {[%clk 0:02:10.4]}
31. Qxg5 {[%clk 0:02:01.5]} 31... hxg5 {[%clk 0:02:12.3]} 32. h4 {[%clk
0:02:03.2]} 32... Nh7 {[%clk 0:02:12.3]} 33. Rh1 {[%clk 0:01:50.7]} 33... gxh4+
{[%clk 0:02:08.6]} 34. Rxh4 {[%clk 0:01:50.2]} 34... Ng5 {[%clk 0:02:06]} 35.
Bf1 {[%clk 0:01:45.8]} 35... f6 {[%clk 0:02:01.6]} 36. Bd3 {[%clk 0:01:44.4]}
36... Kf7 {[%clk 0:01:59.9]} 37. Rh1 {[%clk 0:01:45.3]} 37... Ke7 {[%clk
0:01:58.9]} 38. Rbh2 {[%clk 0:01:43.3]} 38... Kd8 {[%clk 0:01:46.8]} 39. Kf2
{[%clk 0:01:33.4]} 39... Kc7 {[%clk 0:01:43.9]} 40. Ke3 {[%clk 0:01:34.5]} 40...
Kb6 {[%clk 0:01:27.3]} 41. Rb2 {[%clk 0:01:31]} 41... Ndf3 {[%clk 0:01:16.2]}
42. Rf1 {[%clk 0:01:25.8]} 42... Nd4 {[%clk 0:01:11.7]} 43. Rff2 {[%clk
0:01:25.9]} 43... Rh8 {[%clk 0:01:10.6]} 44. Rh2 {[%clk 0:01:21]} 44... Raa8
{[%clk 0:01:10.9]} 45. Na4+ {[%clk 0:01:18.3]} 45... Ka5 {[%clk 0:00:57.5]} 46.
Nac3 {[%clk 0:01:10.3]} 46... Ngf3 {[%clk 0:00:38.7]} 47. Ra2+ {[%clk
0:00:33.3]} 47... Kb6 {[%clk 0:00:35.1]} 48. Rxa8 {[%clk 0:00:34.1]} 48... Rxa8
{[%clk 0:00:31]} 49. Rh7 {[%clk 0:00:33.5]} 49... Rg8 {[%clk 0:00:30.6]} 50. Nd2
{[%clk 0:00:29.4]} 50... Ng5 {[%clk 0:00:29.4]} 51. Rh1 {[%clk 0:00:30]} 51...
Ka5 {[%clk 0:00:30.2]} 52. Ra1+ {[%clk 0:00:25.3]} 52... Kb6 {[%clk 0:00:31.3]}
53. Na4+ {[%clk 0:00:26]} 53... Kc7 {[%clk 0:00:32.2]} 54. Nc3 {[%clk
0:00:22.8]} 54... Rh8 {[%clk 0:00:33]} 55. Rb1 {[%clk 0:00:20.2]} 55... Rh3+
{[%clk 0:00:28]} 56. Kf2 {[%clk 0:00:20.1]} 56... Rxd3 {[%clk 0:00:29.1]} 0-1

[Event "*** Titled Tuesday Blitz"]
[Site "Chess.com"]
[Date "2018.05.01"]
[Round "9"]
[White "GameOverBro"]
[Black "Manukyan_Artak"]
[Result "1-0"]
[WhiteElo "2426"]
[BlackElo "2365"]
[TimeControl "180+2"]
[EndTime "15:01:53 PDT"]
[Termination "GameOverBro won by resignation"]

1. e4 {[%clk 0:03:01.9]} 1... c6 {[%clk 0:03:00.7]} 2. Nc3 {[%clk 0:03:02.4]}
2... d5 {[%clk 0:03:01.6]} 3. Nf3 {[%clk 0:03:03.8]} 3... Bg4 {[%clk 0:03:01.7]}
4. h3 {[%clk 0:03:04.6]} 4... Bxf3 {[%clk 0:03:02.4]} 5. Qxf3 {[%clk 0:03:06.5]}
5... Nf6 {[%clk 0:03:03.7]} 6. d3 {[%clk 0:03:07.6]} 6... e5 {[%clk 0:02:55.2]}
7. exd5 {[%clk 0:02:59.8]} 7... Nxd5 {[%clk 0:02:56]} 8. Bd2 {[%clk 0:02:51.5]}
8... Bb4 {[%clk 0:02:54.5]} 9. a3 {[%clk 0:02:40.9]} 9... Bxc3 {[%clk
0:02:50.9]} 10. bxc3 {[%clk 0:02:41.7]} 10... O-O {[%clk 0:02:50.3]} 11. g3
{[%clk 0:02:12.3]} 11... f5 {[%clk 0:02:22.1]} 12. Qe2 {[%clk 0:01:55.5]} 12...
e4 {[%clk 0:02:12.5]} 13. d4 {[%clk 0:01:52.2]} 13... f4 {[%clk 0:02:02.7]} 14.
gxf4 {[%clk 0:01:24.2]} 14... Nxf4 {[%clk 0:02:01.8]} 15. Qc4+ {[%clk 0:01:22]}
15... Qd5 {[%clk 0:02:00.5]} 16. Rb1 {[%clk 0:01:18.2]} 16... b5 {[%clk
0:01:52.5]} 17. Qxd5+ {[%clk 0:01:10.1]} 17... Nxd5 {[%clk 0:01:52.6]} 18. c4
{[%clk 0:01:09.3]} 18... bxc4 {[%clk 0:01:52.4]} 19. Bxc4 {[%clk 0:01:09.6]}
19... Nd7 {[%clk 0:01:52.5]} 20. Be3 {[%clk 0:01:01.1]} 20... Rab8 {[%clk
0:01:38.6]} 21. Kd2 {[%clk 0:00:51]} 21... Rxb1 {[%clk 0:01:20.1]} 22. Rxb1
{[%clk 0:00:50.4]} 22... Rb8 {[%clk 0:01:22]} 23. Rxb8+ {[%clk 0:00:49.2]} 23...
Nxb8 {[%clk 0:01:22.8]} 24. Bb3 {[%clk 0:00:47.5]} 24... Kf8 {[%clk 0:01:16.2]}
25. c4 {[%clk 0:00:48.6]} 25... Nf6 {[%clk 0:01:12.8]} 26. Kc3 {[%clk 0:00:42]}
26... Ke7 {[%clk 0:01:13.2]} 27. Kb4 {[%clk 0:00:41.9]} 27... Kd7 {[%clk
0:01:11.8]} 28. Ba4 {[%clk 0:00:40.3]} 28... Na6+ {[%clk 0:00:59.6]} 29. Ka5
{[%clk 0:00:40.6]} 29... Nc7 {[%clk 0:01:00.7]} 30. d5 {[%clk 0:00:39.9]} 30...
Nfxd5 {[%clk 0:00:57.4]} 31. cxd5 {[%clk 0:00:39.7]} 31... Nxd5 {[%clk
0:00:59.3]} 32. Bxa7 {[%clk 0:00:39.6]} 32... Nf4 {[%clk 0:01:00.5]} 33. Bd1
{[%clk 0:00:32.7]} 33... Kc7 {[%clk 0:00:57.4]} 34. Bd4 {[%clk 0:00:28]} 34...
Nxh3 {[%clk 0:00:55.7]} 35. Bxg7 {[%clk 0:00:26]} 35... Nxf2 {[%clk 0:00:56.4]}
36. Be5+ {[%clk 0:00:27.4]} 36... Kb7 {[%clk 0:00:55]} 37. Bh5 {[%clk
0:00:28.9]} 37... Nd3 {[%clk 0:00:49.4]} 38. Bd4 {[%clk 0:00:26.5]} 38... Nf4
{[%clk 0:00:48.4]} 39. Bg4 {[%clk 0:00:24.6]} 39... h5 {[%clk 0:00:47.5]} 40.
Bf5 {[%clk 0:00:25.7]} 40... h4 {[%clk 0:00:41.8]} 41. Bxe4 {[%clk 0:00:26.5]}
41... h3 {[%clk 0:00:42.9]} 42. Be5 {[%clk 0:00:26.8]} 42... Nd5 {[%clk
0:00:42.9]} 43. Bf5 {[%clk 0:00:26.3]} 43... Ne3 {[%clk 0:00:42.3]} 44. Bd3
{[%clk 0:00:22.4]} 44... Ng4 {[%clk 0:00:42.3]} 45. Bg3 {[%clk 0:00:21.8]} 45...
h2 {[%clk 0:00:43.3]} 46. Be4 {[%clk 0:00:23.3]} 46... Nf6 {[%clk 0:00:31.5]}
47. Bg2 {[%clk 0:00:21.5]} 47... Ng4 {[%clk 0:00:31.3]} 48. Kb4 {[%clk
0:00:21.4]} 48... Kb6 {[%clk 0:00:30.9]} 49. a4 {[%clk 0:00:22.8]} 49... c5+
{[%clk 0:00:29.7]} 50. Kc4 {[%clk 0:00:23.8]} 50... Ka5 {[%clk 0:00:31]} 51.
Kxc5 {[%clk 0:00:25]} 51... Kxa4 {[%clk 0:00:31.8]} 52. Kd4 {[%clk 0:00:26.4]}
52... Kb5 {[%clk 0:00:29.8]} 53. Ke4 {[%clk 0:00:27.8]} 53... Nf6+ {[%clk
0:00:30.9]} 54. Kf5 {[%clk 0:00:28.5]} 54... Nd5 {[%clk 0:00:31.8]} 55. Bxd5
{[%clk 0:00:24.7]} 55... Kc5 {[%clk 0:00:32.5]} 56. Bg2 {[%clk 0:00:25.4]} 56...
Kd4 {[%clk 0:00:33.8]} 57. Bxh2 {[%clk 0:00:26.6]} 1-0

[Event "*** Titled Tuesday Blitz"]
[Site "Chess.com"]
[Date "2018.05.01"]
[Round "9"]
[White "Zenzo"]
[Black "tomsishere"]
[Result "0-1"]
[WhiteElo "2386"]
[BlackElo "2376"]
[TimeControl "180+2"]
[EndTime "15:02:25 PDT"]
[Termination "tomsishere won by checkmate"]

1. e4 {[%clk 0:03:01.9]} 1... c5 {[%clk 0:03:00.3]} 2. Nf3 {[%clk 0:03:02.9]}
2... e6 {[%clk 0:03:01.5]} 3. d4 {[%clk 0:03:04.3]} 3... cxd4 {[%clk 0:03:03]}
4. Nxd4 {[%clk 0:03:06.2]} 4... Nc6 {[%clk 0:03:04.1]} 5. Nc3 {[%clk 0:03:06.8]}
5... Qc7 {[%clk 0:03:05.4]} 6. Be3 {[%clk 0:03:05.2]} 6... a6 {[%clk 0:03:06.6]}
7. Qd2 {[%clk 0:03:00.8]} 7... Nf6 {[%clk 0:03:06]} 8. O-O-O {[%clk 0:03:00.6]}
8... Be7 {[%clk 0:03:06.9]} 9. f3 {[%clk 0:03:01.4]} 9... b5 {[%clk 0:03:06.4]}
10. Kb1 {[%clk 0:03:01.7]} 10... h5 {[%clk 0:03:06.2]} 11. a3 {[%clk 0:03:01.7]}
11... Ne5 {[%clk 0:03:03.5]} 12. Qf2 {[%clk 0:03:00.7]} 12... Nc4 {[%clk
0:02:52.5]} 13. Bxc4 {[%clk 0:02:58.5]} 13... bxc4 {[%clk 0:02:52.6]} 14. h3
{[%clk 0:02:55.1]} 14... Rb8 {[%clk 0:02:47.3]} 15. Ka2 {[%clk 0:02:39.1]} 15...
Qa5 {[%clk 0:02:47.4]} 16. Nb1 {[%clk 0:02:32.1]} 16... d5 {[%clk 0:02:30.5]}
17. exd5 {[%clk 0:02:27.7]} 17... Nxd5 {[%clk 0:02:28.8]} 18. Nc6 {[%clk
0:02:23.6]} 18... Qa4 {[%clk 0:02:05.2]} 19. Rxd5 {[%clk 0:01:53.2]} 19... Qxc6
{[%clk 0:02:01.9]} 20. Rd2 {[%clk 0:01:51.7]} 20... e5 {[%clk 0:01:47.6]} 21. f4
{[%clk 0:01:49.3]} 21... c3 {[%clk 0:01:45.7]} 22. Nxc3 {[%clk 0:01:49.8]} 22...
Be6+ {[%clk 0:01:46]} 23. Ka1 {[%clk 0:01:48.6]} 23... Bxa3 {[%clk 0:01:45.1]}
24. Rb1 {[%clk 0:01:36.5]} 24... Bxb2+ {[%clk 0:01:34.5]} 25. Rxb2 {[%clk
0:01:38.4]} 25... Qxc3 {[%clk 0:01:34.5]} 26. Bb6 {[%clk 0:01:39.9]} 26... exf4
{[%clk 0:01:17.4]} 27. Qd4 {[%clk 0:01:36]} 27... Qa3+ {[%clk 0:01:09.3]} 28.
Kb1 {[%clk 0:01:36.4]} 28... O-O {[%clk 0:01:09.4]} 29. Qd6 {[%clk 0:01:01.2]}
29... Qc3 {[%clk 0:00:42.4]} 30. Rd3 {[%clk 0:00:52.6]} 30... Qe1+ {[%clk
0:00:40.2]} 31. Rd1 {[%clk 0:00:53.5]} 31... Qe4 {[%clk 0:00:39.4]} 32. Bc5
{[%clk 0:00:35.8]} 32... Rxb2+ {[%clk 0:00:33.6]} 33. Kxb2 {[%clk 0:00:37.7]}
33... Rc8 {[%clk 0:00:33.6]} 34. c3 {[%clk 0:00:32]} 34... Qxg2+ {[%clk
0:00:32.4]} 35. Rd2 {[%clk 0:00:33.5]} 35... Qb7+ {[%clk 0:00:32.1]} 36. Kc1
{[%clk 0:00:32.8]} 36... Bf5 {[%clk 0:00:27.8]} 37. Kd1 {[%clk 0:00:16.9]} 37...
Qb1+ {[%clk 0:00:26.1]} 38. Ke2 {[%clk 0:00:17.8]} 38... Re8+ {[%clk 0:00:27.4]}
39. Kf3 {[%clk 0:00:16.7]} 39... Qe4+ {[%clk 0:00:23.7]} 40. Kf2 {[%clk
0:00:18]} 40... Qe1+ {[%clk 0:00:22.9]} 41. Kf3 {[%clk 0:00:19.5]} 41... Be4+
{[%clk 0:00:16.2]} 42. Kxf4 {[%clk 0:00:19.9]} 42... Bg6 {[%clk 0:00:11.9]} 43.
Bf2 {[%clk 0:00:17]} 43... Qe4+ {[%clk 0:00:11.4]} 44. Kg3 {[%clk 0:00:18.5]}
44... h4+ {[%clk 0:00:10]} 45. Kh2 {[%clk 0:00:20]} 45... Qf3 {[%clk 0:00:10.7]}
46. Bxh4 {[%clk 0:00:20.3]} 46... Be4 {[%clk 0:00:11.6]} 47. Qd7 {[%clk
0:00:13.3]} 47... Re6 {[%clk 0:00:09.6]} 48. Qd8+ {[%clk 0:00:10.5]} 48... Kh7
{[%clk 0:00:10]} 49. Bg5 {[%clk 0:00:08.9]} 49... Qh1+ {[%clk 0:00:07.8]} 50.
Kg3 {[%clk 0:00:09.4]} 50... Qg1+ {[%clk 0:00:07.5]} 51. Kf4 {[%clk 0:00:09.7]}
51... Qf1+ {[%clk 0:00:07.3]} 52. Kg3 {[%clk 0:00:10.8]} 52... Rg6 {[%clk
0:00:06.6]} 53. h4 {[%clk 0:00:11.7]} 53... f6 {[%clk 0:00:06.7]} 54. Rh2 {[%clk
0:00:08.1]} 54... Qf3# {[%clk 0:00:06.9]} 0-1

[Event "*** Titled Tuesday Blitz"]
[Site "Chess.com"]
[Date "2018.05.01"]
[Round "9"]
[White "AsaHoffmann"]
[Black "bugsbunny444"]
[Result "1/2-1/2"]
[WhiteElo "2042"]
[BlackElo "2326"]
[TimeControl "180+2"]
[EndTime "15:02:38 PDT"]
[Termination "Game drawn by agreement"]

1. d4 {[%clk 0:02:29.8]} 1... e6 {[%clk 0:03:00.8]} 2. e4 {[%clk 0:02:29.3]}
2... d5 {[%clk 0:03:01.6]} 3. e5 {[%clk 0:02:30]} 3... c5 {[%clk 0:03:01.8]} 4.
Nf3 {[%clk 0:02:30.4]} 4... cxd4 {[%clk 0:03:00.1]} 5. Qxd4 {[%clk 0:02:28.1]}
5... Nc6 {[%clk 0:02:39.1]} 6. Qf4 {[%clk 0:02:27.7]} 6... f6 {[%clk 0:02:29.9]}
7. Bb5 {[%clk 0:02:26.7]} 7... Bd7 {[%clk 0:02:18.5]} 8. Bxc6 {[%clk 0:02:25.8]}
8... bxc6 {[%clk 0:02:17.6]} 9. O-O {[%clk 0:02:25.4]} 9... fxe5 {[%clk
0:02:00.9]} 10. Qxe5 {[%clk 0:02:21]} 10... Nf6 {[%clk 0:01:58.2]} 11. Re1
{[%clk 0:02:20.9]} 11... Bc5 {[%clk 0:01:34.3]} 12. Be3 {[%clk 0:02:17.1]} 12...
Bxe3 {[%clk 0:00:55]} 13. Rxe3 {[%clk 0:02:16.8]} 13... O-O {[%clk 0:00:49.2]}
14. h3 {[%clk 0:02:17.5]} 14... c5 {[%clk 0:00:33.8]} 15. Nbd2 {[%clk 0:02:14]}
15... Qb6 {[%clk 0:00:25.1]} 16. b3 {[%clk 0:02:13.7]} 16... a5 {[%clk
0:00:21.9]} 17. Rae1 {[%clk 0:02:13.5]} 17... a4 {[%clk 0:00:22.3]} 18. Qg5
{[%clk 0:01:53.3]} 18... axb3 {[%clk 0:00:14]} 19. axb3 {[%clk 0:01:53.8]} 19...
Ra2 {[%clk 0:00:15]} 20. Ne5 {[%clk 0:01:50.2]} 20... Bc8 {[%clk 0:00:15.3]} 21.
Rg3 {[%clk 0:01:47.4]} 21... Qc7 {[%clk 0:00:12.6]} 22. c4 {[%clk 0:01:44.4]}
22... d4 {[%clk 0:00:05.8]} 23. Ndf3 {[%clk 0:01:44.7]} 23... Kh8 {[%clk
0:00:04.7]} 24. h4 {[%clk 0:01:45]} 24... Rg8 {[%clk 0:00:04.1]} 25. h5 {[%clk
0:01:45.7]} 25... h6 {[%clk 0:00:03.5]} 26. Qg6 {[%clk 0:01:43.4]} 26... Rf8
{[%clk 0:00:04.5]} 27. Nh4 {[%clk 0:01:40.9]} 27... Ra7 {[%clk 0:00:03.2]} 28.
Qd3 {[%clk 0:01:32.1]} 28... Kg8 {[%clk 0:00:04.1]} 29. Nhg6 {[%clk 0:01:31.9]}
29... Re8 {[%clk 0:00:05.1]} 30. Rf3 {[%clk 0:01:28.4]} 30... Bb7 {[%clk
0:00:05.7]} 31. Rxf6 {[%clk 0:01:27.1]} 31... gxf6 {[%clk 0:00:06.5]} 32. Ng4
{[%clk 0:01:27.8]} 32... Qg7 {[%clk 0:00:07.2]} 33. Qg3 {[%clk 0:01:23.1]} 33...
e5 {[%clk 0:00:03.9]} 34. Qh4 {[%clk 0:01:19.6]} 34... Ra6 {[%clk 0:00:02.1]}
35. f3 {[%clk 0:01:14.9]} 35... Bc8 {[%clk 0:00:03.5]} 36. Nf2 {[%clk
0:01:13.1]} 36... Bf5 {[%clk 0:00:04.9]} 37. Ne4 {[%clk 0:01:13.5]} 37... Bxg6
{[%clk 0:00:06.3]} 38. hxg6 {[%clk 0:01:14.1]} 38... Qxg6 {[%clk 0:00:06.5]} 39.
Nxc5 {[%clk 0:01:14.5]} 39... Rb6 {[%clk 0:00:06.8]} 40. Ne4 {[%clk 0:01:14.2]}
40... Rxb3 {[%clk 0:00:07.3]} 41. Nxf6+ {[%clk 0:01:13.7]} 41... Kg7 {[%clk
0:00:08.3]} 42. Nxe8+ {[%clk 0:01:14.1]} 42... Qxe8 {[%clk 0:00:10.2]} 43. Qg3+
{[%clk 0:01:14.6]} 43... Kf6 {[%clk 0:00:11.4]} 44. Qh4+ {[%clk 0:01:14]} 44...
Kg7 {[%clk 0:00:08.3]} 45. Qg4+ {[%clk 0:01:13.6]} 45... Kf6 {[%clk 0:00:09.1]}
46. Qe4 {[%clk 0:01:10]} 46... Qe6 {[%clk 0:00:03.8]} 47. f4 {[%clk 0:01:07.7]}
47... Re3 {[%clk 0:00:04.9]} 48. fxe5+ {[%clk 0:01:06.7]} 48... Qxe5 {[%clk
0:00:05.7]} 49. Rf1+ {[%clk 0:01:06.1]} 49... Kg5 {[%clk 0:00:03.7]} 50. Qh7
{[%clk 0:00:57.6]} 50... Re1 {[%clk 0:00:04]} 51. Qg8+ {[%clk 0:00:57.7]} 51...
Kh5 {[%clk 0:00:02.8]} 52. Qf7+ {[%clk 0:00:53.3]} 52... Kg5 {[%clk 0:00:04.1]}
53. Qf3 {[%clk 0:00:38.2]} 53... Rxf1+ {[%clk 0:00:04.4]} 54. Kxf1 {[%clk
0:00:39]} 54... Qf4 {[%clk 0:00:03.9]} 55. Ke2 {[%clk 0:00:38.9]} 55... Qc1
{[%clk 0:00:04.4]} 56. Kd3 {[%clk 0:00:37.2]} 56... Qc3+ {[%clk 0:00:04.9]} 57.
Ke4 {[%clk 0:00:38]} 57... Qxc4 {[%clk 0:00:05]} 58. Qf5+ {[%clk 0:00:38.4]}
58... Kh4 {[%clk 0:00:06.4]} 59. Qh3+ {[%clk 0:00:37.2]} 59... Kg5 {[%clk
0:00:07.6]} 60. Qg3+ {[%clk 0:00:38]} 60... Kf6 {[%clk 0:00:08.2]} 61. Qh4+
{[%clk 0:00:38.5]} 61... Kg6 {[%clk 0:00:08.1]} 62. Qg4+ {[%clk 0:00:39.4]}
62... Kf6 {[%clk 0:00:09.2]} 63. Qf5+ {[%clk 0:00:40.2]} 63... Kg7 {[%clk
0:00:10]} 64. Qe5+ {[%clk 0:00:40.6]} 64... Kg6 {[%clk 0:00:11.3]} 65. Qxd4
{[%clk 0:00:41.3]} 65... Qxd4+ {[%clk 0:00:11.7]} 66. Kxd4 {[%clk 0:00:42.2]}
66... Kf5 {[%clk 0:00:13.6]} 67. Ke3 {[%clk 0:00:42.8]} 67... Kg4 {[%clk
0:00:14.6]} 68. Kf2 {[%clk 0:00:43.3]} 68... Kf4 {[%clk 0:00:16.1]} 1/2-1/2